fUSD/lending_fUSD_20260118
["ID","MTS","AMOUNT","RATE_DAILY","PERIOD"]
[402660011,1768762243133,-500.00000017,0.00015808,2]
[402660012,1768762243143,-500.0,0.00015808,2]
[402660013,1768762243153,-500.0,0.00015808,2]
[402660014,1768762243163,-500.0,0.00015808,2]
[402660015,1768762243173,-500.0,0.00015808,2]
[402660016,1768762243183,-500.0,0.00015808,2]
[402660017,1768762243193,-500.0,0.00015808,2]
[402660018,1768762243202,-500.0,0.00015808,2]
[402660019,1768762243212,-472.73300168,0.00015808,2]
[402660020,1768762243222,-986.0,0.00015809,2]
[402660021,1768762243231,-640.47460981,0.00015809,2]
[402660022,1768762243241,-176.80045437,0.00015809,2]
[402660023,1768762243250,-500.0,0.00015809,2]
[402660024,1768762243260,-500.0,0.00015809,2]
[402660026,1768762243270,-500.0,0.00015809,2]
[402660028,1768762243279,-539.0,0.00015809,2]
[402660030,1768762243288,-323.16053674,0.00015809,2]
[402660032,1768762243298,-500.0,0.00015809,2]
[402660033,1768762243307,-45139.94393073,0.00015815,2]
[402660034,1768762243317,-721.98194304,0.00015824,2]
[402660035,1768762243327,-986.0,0.00015863,2]
[402660036,1768762243336,-502.19354674,0.00015863,2]
[402660037,1768762243346,-500.0,0.00015863,2]
[402660038,1768762243356,-500.0,0.00015863,2]
[402660039,1768762243366,-539.0,0.00015863,2]
[402660040,1768762243377,-150.0,0.00015863,2]
[402660041,1768762243387,-500.0,0.00015864,2]
[402660042,1768762243397,-500.0,0.00015864,2]
[402660043,1768762243407,-500.0,0.00015864,2]
[402660044,1768762243417,-758.35731153,0.00015881,2]
[402660045,1768762243427,-27477.85648767,0.00015885,2]
[402660046,1768762243437,-1500.0,0.000159,5]
[402660047,1768762243448,-500.0,0.00015908,2]
[402660048,1768762243458,-583.72403827,0.00015908,2]
[402660049,1768762243468,-500.0,0.00015908,2]
[402660050,1768762243478,-500.0,0.00015908,2]
[402660051,1768762243488,-986.0,0.00015918,2]
[402660052,1768762243497,-500.0,0.00015918,2]
[402660053,1768762243508,-500.0,0.00015918,2]
[402660054,1768762243517,-539.0,0.00015918,2]
[402660055,1768762243527,-502.60324195,0.00015973,2]
[402660056,1768762243537,-500.0,0.00015973,2]
[402660057,1768762243547,-501.87003292,0.00015973,2]
[402660058,1768762243556,-500.12167174,0.00015973,2]
[402660059,1768762243566,-500.0,0.00015973,2]
[402660060,1768762243575,-500.9636083,0.00015973,2]
[402660061,1768762243584,-512.65188463,0.00015973,2]
[402660062,1768762243594,-500.0,0.00015973,2]
[402660063,1768762243603,-500.0,0.00015973,2]
[402660064,1768762243615,-500.0,0.00015973,2]
[402660065,1768762243625,-500.0,0.00015973,2]
[402660066,1768762243635,-500.0,0.00015973,2]
[402660067,1768762243646,-500.0,0.00015973,2]
[402660068,1768762243655,-500.0,0.00015973,2]
[402660069,1768762243665,-500.0,0.00015973,2]
[402660070,1768762243674,-500.84549516,0.00015973,2]
[402660071,1768762243683,-501.94559639,0.00015973,2]
[402660072,1768762243693,-500.0,0.00015973,2]
[402660073,1768762243703,-500.0,0.00015973,2]
[402660074,1768762243712,-500.0,0.00015973,2]
[402660075,1768762243723,-986.0,0.00015973,2]
[402660076,1768762243742,-500.0,0.00015973,2]
[402660077,1768762243759,-331.0,0.00015973,2]
[402660078,1768762243768,-539.0,0.00015973,2]
[402660079,1768762243778,-1390.41,0.00015973,2]
[402660080,1768762243788,-379.62,0.00015982,2]
[402660081,1768762243797,-986.0,0.00016028,2]
[402660082,1768762243807,-500.0,0.00016028,2]
[402660083,1768762243817,-539.0,0.00016028,2]
[402660084,1768762243826,-14146.65268913,0.00016068,2]
[402660085,1768762243836,-986.0,0.00016083,2]
[402660086,1768762243846,-462.0,0.00016083,2]
[402660087,1768762243856,-539.0,0.00016083,2]
[402660088,1768762243866,-285.72,0.00016101,2]
[402660089,1768762243876,-986.0,0.00016137,2]
[402660090,1768762243886,-539.0,0.00016137,2]
[402660091,1768762243896,-27477.85648767,0.00016173,2]
[402660092,1768762243905,-986.0,0.00016192,2]
[402660093,1768762243916,-539.0,0.00016192,2]
[402660094,1768762243926,-150.0,0.000162,2]
[402660095,1768762243936,-150.0,0.000162,2]
[402660096,1768762243946,-150.0,0.000162,2]
[402660097,1768762244185,-150.0,0.000162,2]
[402660098,1768762244195,-150.0,0.000162,2]
[402660099,1768762244206,-150.0,0.000162,2]
[402660100,1768762244217,-758.35731153,0.00016217,2]
[402660101,1768762244227,-506.27037057,0.00016247,2]
[402660102,1768762244237,-986.0,0.00016247,2]
[402660103,1768762244248,-539.0,0.00016247,2]
[402660104,1768762244258,-1390.41,0.00016247,2]
[402660105,1768762244269,-166.66,0.00016268,2]
[402660106,1768762244279,-1068.15064054,0.000163,2]
[402660107,1768762244288,-986.0,0.00016302,2]
[402660108,1768762244297,-539.0,0.00016302,2]
[402660109,1768762244307,-14146.65268913,0.00016329,2]
[402660110,1768762244316,-721.98194304,0.00016338,2]
[402660111,1768762244325,-986.0,0.00016357,2]
[402660112,1768762244334,-539.0,0.00016357,2]
[402660113,1768762244344,-986.0,0.00016411,2]
[402660114,1768762244354,-539.0,0.00016411,2]
[402660115,1768762244363,-300.0,0.00016438,2]
[402660116,1768762244373,-300.0,0.00016438,2]
[402660117,1768762244383,-500.0,0.00016438,2]
[402660118,1768762244393,-649.78195025,0.00016438,2]
[402660119,1768762244403,-649.78195025,0.00016438,2]
[402660120,1768762244412,-649.78195025,0.00016438,2]
[402660121,1768762244421,-649.78195025,0.00016438,2]
[402660122,1768762244431,-649.78195025,0.00016438,2]
[402660123,1768762244440,-649.78195025,0.00016438,2]
[402660124,1768762244450,-649.78195025,0.00016438,2]
[402660125,1768762244459,-649.78195025,0.00016438,2]
[402660126,1768762244469,-649.78195025,0.00016438,2]
[402660127,1768762244479,-649.78195025,0.00016438,2]
[402660128,1768762244489,-649.78195025,0.00016438,2]
[402660129,1768762244499,-649.78195025,0.00016438,2]
[402660130,1768762244508,-649.78195025,0.00016438,2]
[402660131,1768762244518,-649.78195025,0.00016438,2]
[402660132,1768762244528,-649.78195025,0.00016438,2]
[402660133,1768762244537,-649.78195025,0.00016438,2]
[402660134,1768762244547,-649.78195025,0.00016438,2]
[402660135,1768762244557,-649.78195025,0.00016438,2]
[402660136,1768762244566,-649.78195025,0.00016438,2]
[402660137,1768762244575,-649.78195025,0.00016438,2]
[402660138,1768762244585,-649.78195025,0.00016438,2]
[402660139,1768762244595,-649.78195025,0.00016438,2]
[402660140,1768762244605,-649.78195025,0.00016438,2]
[402660141,1768762244614,-649.78195025,0.00016438,2]
[402660142,1768762244624,-649.78195025,0.00016438,2]
[402660143,1768762244634,-649.78195025,0.00016438,2]
[402660144,1768762244645,-649.78195025,0.00016438,2]
[402660145,1768762244657,-649.78195025,0.00016438,2]
[402660146,1768762244667,-649.78195025,0.00016438,2]
[402660147,1768762244677,-649.78195025,0.00016438,2]
[402660148,1768762244687,-649.78195025,0.00016438,2]
[402660149,1768762244697,-649.78195025,0.00016438,2]
[402660150,1768762244707,-649.78195025,0.00016438,2]
[402660151,1768762244717,-649.78195025,0.00016438,2]
[402660152,1768762244727,-649.78195025,0.00016438,2]
[402660153,1768762244737,-649.78195025,0.00016438,2]
[402660154,1768762244747,-649.78195025,0.00016438,2]
[402660155,1768762244757,-649.78195025,0.00016438,2]
[402660156,1768762244767,-649.78195025,0.00016438,2]
[402660157,1768762244778,-649.78195025,0.00016438,2]
[402660158,1768762244788,-649.78195025,0.00016438,2]
[402660159,1768762244798,-649.78195025,0.00016438,2]
[402660160,1768762244807,-649.78195025,0.00016438,2]
[402660161,1768762244818,-649.78195025,0.00016438,2]
[402660162,1768762244828,-649.78195025,0.00016438,2]
[402660163,1768762244839,-649.78195025,0.00016438,2]
[402660164,1768762244848,-649.78195025,0.00016438,2]
[402660165,1768762244859,-649.78195025,0.00016438,2]
[402660166,1768762244868,-649.78195025,0.00016438,2]
[402660167,1768762244880,-649.78195025,0.00016438,2]
[402660168,1768762244889,-649.78195025,0.00016438,2]
[402660169,1768762244899,-649.78195025,0.00016438,2]
[402660170,1768762244909,-649.78195025,0.00016438,2]
[402660171,1768762244919,-649.78195025,0.00016438,2]
[402660172,1768762244929,-649.78195025,0.00016438,2]
[402660173,1768762244940,-649.78195025,0.00016438,2]
[402660174,1768762244949,-649.78195025,0.00016438,2]
[402660175,1768762244959,-649.78195025,0.00016438,2]
[402660176,1768762244969,-649.78195025,0.00016438,2]
[402660177,1768762244979,-649.78195025,0.00016438,2]
[402660178,1768762244989,-211.77117296,0.00016438,2]
[402660179,1768762244998,-165.1,0.0001644,2]
[402660180,1768762245009,-2783.20318463,0.00016442,2]
[402660181,1768762245019,-27477.85648767,0.00016461,2]
[402660182,1768762245031,-986.0,0.00016466,2]
[402660183,1768762245042,-539.0,0.00016466,2]
[402660184,1768762245052,-500.0,0.00016493,2]
[402660185,1768762245062,-500.0,0.00016493,2]
[402660186,1768762245071,-500.0,0.00016499,2]
[402660187,1768762245081,-594.61669288,0.00016499,2]
[402660188,1768762245090,-500.0,0.00016499,2]
[402660189,1768762245100,-504.10221386,0.00016521,2]
[402660190,1768762245110,-1000.0,0.00016521,2]
[402660191,1768762245119,-1000.0,0.00016521,2]
[402660192,1768762245131,-459.63746506,0.00016521,2]
[402660193,1768762245141,-234.02633366,0.00016521,2]
[402660194,1768762245151,-1000.0,0.00016521,2]
[402660195,1768762245161,-494.41663554,0.00016521,2]
[402660196,1768762245172,-1000.0,0.00016521,2]
[402660197,1768762245184,-1000.0,0.00016521,2]
[402660198,1768762245195,-1000.0,0.00016521,2]
[402660199,1768762245205,-1000.0,0.00016521,2]
[402660200,1768762245217,-1002.20709128,0.00016521,2]
[402660201,1768762245227,-986.0,0.00016521,2]
[402660202,1768762245236,-539.0,0.00016521,2]
[402660203,1768762245246,-1390.41,0.00016521,2]
[402660204,1768762245256,-400.71652531,0.00016533,2]
[402660205,1768762245265,-500.0,0.00016548,2]
[402660206,1768762245275,-388.0,0.0001655,2]
[402660207,1768762245285,-758.35731153,0.00016554,2]
[402660208,1768762245295,-986.0,0.00016576,2]
[402660209,1768762245305,-539.0,0.00016576,2]
[402660210,1768762245317,-14146.65268913,0.00016591,2]
[402660211,1768762245328,-1426.40824508,0.000166,2]
[402660212,1768762245338,-500.0,0.00016602,2]
[402660213,1768762245348,-986.0,0.0001663,2]
[402660214,1768762245359,-539.0,0.0001663,2]
[402660215,1768762245369,-150.0,0.0001665,2]
[402660216,1768762245379,-500.0,0.00016657,2]
[402660217,1768762245389,-998.48459727,0.00016685,2]
[402660218,1768762245398,-548.21642172,0.00016685,2]
[402660219,1768762245408,-500.0,0.00016712,2]
[402660220,1768762245417,-27477.85648767,0.00016748,2]
[402660221,1768762245427,-420.0,0.00016749,2]
[402660222,1768762245436,-1390.41,0.00016795,2]
[402660223,1768762245447,-1118.51606834,0.000168,2]
[402660224,1768762245457,-1257.0,0.00016833,2]
[402660225,1768762245468,-195.0,0.00016839,2]
[402660226,1768762245478,-250.0,0.00016839,2]
[402660227,1768762245487,-300.0,0.00016839,2]
[402660228,1768762245497,-14146.65268913,0.00016853,2]
[402660229,1768762245507,-700.0,0.00016856,7]
[402660230,1768762245516,-500.0,0.00016856,7]
[402660231,1768762245525,-500.0,0.00016856,7]
[402660233,1768762245535,-758.35731153,0.0001689,2]
[402660234,1768762245545,-2300.0,0.000169,6]
[402660235,1768762245554,-250.0,0.00016948,2]
[402660236,1768762245563,-500.0,0.00016948,2]
[402660237,1768762245573,-500.0,0.00016948,2]
[402660238,1768762245583,-238.79765204,0.00016948,2]
[402660239,1768762245593,-5000.0,0.00016949,2]
[402660240,1768762245602,-300.0,0.00016949,2]
[402660241,1768762245612,-195.0,0.00016949,2]
[402660242,1768762245622,-2500.0,0.00016949,2]
[402660243,1768762245631,-300.0,0.00016949,2]
[402660244,1768762245641,-600.0,0.00016949,2]
[402660245,1768762245650,-193.0,0.00016949,2]
[402660246,1768762245660,-300.0,0.00016949,2]
[402660247,1768762245669,-231.40398252,0.00016983,2]
[402660248,1768762245679,-250.0,0.00017,2]
[402660249,1768762245689,-379.62,0.00017017,2]
[402660250,1768762245698,-27477.85648767,0.00017036,2]
[402660251,1768762245708,-325.9,0.00017041,2]
[402660252,1768762245718,-662.88,0.00017041,2]
[402660253,1768762245728,-662.88,0.00017041,2]
[402660254,1768762245737,-662.88,0.00017041,2]
[402660255,1768762245747,-662.88,0.00017041,2]
[402660256,1768762245756,-662.88,0.00017041,2]
[402660257,1768762245766,-662.88,0.00017041,2]
[402660258,1768762245776,-662.88,0.00017041,2]
[402660259,1768762245785,-662.88,0.00017041,2]
[402660260,1768762245795,-662.88,0.00017041,2]
[402660261,1768762245806,-662.88,0.00017041,2]
[402660262,1768762245815,-662.88,0.00017041,2]
[402660263,1768762245826,-662.88,0.00017041,2]
[402660264,1768762245837,-662.88,0.00017041,2]
[402660265,1768762245848,-662.88,0.00017041,2]
[402660266,1768762245858,-656.12,0.00017041,2]
[402660267,1768762245867,-288.56,0.00017041,2]
[402660268,1768762245877,-976.32,0.00017041,2]
[402660269,1768762245887,-662.88,0.00017041,2]
[402660270,1768762245898,-1506.18752116,0.00017068,2]
[402660271,1768762245909,-1500.0,0.00017068,2]
[402660272,1768762245919,-1500.0,0.00017068,2]
[402660273,1768762245929,-1500.0,0.00017068,2]
[402660274,1768762245938,-1500.0,0.00017068,2]
[402660275,1768762245948,-1500.0,0.00017068,2]
[402660276,1768762245959,-1006.54498696,0.00017068,2]
[402660277,1768762245969,-1390.41,0.00017069,2]
[402660278,1768762245979,-9000.0,0.00017099,2]
[402660279,1768762245989,-9000.0,0.00017099,2]
[402660280,1768762245999,-9000.0,0.00017099,2]
[402660281,1768762246008,-9000.0,0.00017099,2]
[402660282,1768762246017,-574.12855637,0.00017099,2]
[402660283,1768762246027,-5361.50483063,0.00017099,2]
[402660284,1768762246041,-174.61919141,0.00017099,2]
[402660285,1768762246050,-1500.0,0.00017099,2]
[402660286,1768762246060,-1500.0,0.00017099,2]
[402660287,1768762246069,-1500.0,0.00017099,2]
[402660288,1768762246080,-1500.0,0.00017099,2]
[402660289,1768762246090,-1500.0,0.00017099,2]
[402660290,1768762246099,-151.0,0.00017099,2]
[402660291,1768762246111,-1500.0,0.00017099,2]
[402660292,1768762246120,-302.96874146,0.00017099,2]
[402660293,1768762246130,-1500.0,0.00017099,2]
[402660294,1768762246139,-1500.0,0.00017099,2]
[402660295,1768762246149,-1500.0,0.00017099,2]
[402660296,1768762246159,-1500.0,0.00017099,2]
[402660297,1768762246169,-1999.0,0.00017099,2]
[402660298,1768762246178,-250.0,0.00017099,2]
[402660299,1768762246187,-250.0,0.00017099,2]
[402660300,1768762246197,-322.6107,0.00017099,2]
[402660301,1768762246207,-250.0,0.00017099,2]
[402660302,1768762246217,-1500.0,0.00017099,2]
[402660303,1768762246226,-500.0,0.00017099,2]
[402660304,1768762246236,-250.0,0.00017099,2]
[402660305,1768762246245,-516.55849821,0.00017099,2]
[402660306,1768762246255,-250.0,0.00017099,2]
[402660307,1768762246265,-250.0,0.00017099,2]
[402660309,1768762246274,-250.0,0.00017099,2]
[402660310,1768762246283,-250.0,0.00017099,2]
[402660311,1768762246293,-250.0,0.00017099,2]
[402660312,1768762246302,-250.0,0.00017099,2]
[402660313,1768762246313,-250.0,0.00017099,2]
[402660314,1768762246322,-250.0,0.00017099,2]
[402660315,1768762246331,-250.0,0.00017099,2]
[402660316,1768762246341,-250.0,0.00017099,2]
[402660317,1768762246351,-250.0,0.00017099,2]
[402660318,1768762246360,-250.0,0.00017099,2]
[402660319,1768762246370,-250.0,0.00017099,2]
[402660321,1768762246379,-250.0,0.00017099,2]
[402660323,1768762246389,-250.0,0.00017099,2]
[402660325,1768762246399,-250.0,0.00017099,2]
[402660326,1768762246409,-250.0,0.00017099,2]
[402660327,1768762246418,-500.0,0.00017099,2]
[402660328,1768762246428,-250.0,0.00017099,2]
[402660329,1768762246438,-500.0,0.00017099,2]
[402660330,1768762246454,-500.0,0.00017099,2]
[402660331,1768762246466,-500.0,0.00017099,2]
[402660332,1768762246477,-500.0,0.00017099,2]
[402660333,1768762246487,-500.0,0.00017099,2]
[402660334,1768762246496,-500.0,0.00017099,2]
[402660335,1768762246506,-500.0,0.00017099,2]
[402660336,1768762246516,-500.0,0.00017099,2]
[402660337,1768762246526,-500.0,0.00017099,2]
[402660338,1768762246536,-500.0,0.00017099,2]
[402660339,1768762246546,-500.0,0.00017099,2]
[402660340,1768762246556,-1000.0,0.00017099,2]
[402660341,1768762246565,-500.0,0.00017099,2]
[402660342,1768762246574,-500.0,0.00017099,2]
[402660343,1768762246583,-1000.0,0.00017099,2]
[402660344,1768762246593,-500.0,0.00017099,2]
[402660345,1768762246602,-500.0,0.00017099,2]
[402660346,1768762246612,-1000.0,0.00017099,2]
[402660347,1768762246621,-500.0,0.00017099,2]
[402660348,1768762246631,-500.0,0.00017099,2]
[402660349,1768762246708,-1000.0,0.00017099,2]
[402660350,1768762246718,-500.0,0.00017099,2]
[402660351,1768762246727,-1000.0,0.00017099,2]
[402660352,1768762246737,-500.0,0.00017099,2]
[402660353,1768762246747,-1000.0,0.00017099,2]
[402660354,1768762246758,-500.0,0.00017099,2]
[402660355,1768762246769,-1000.0,0.00017099,2]
[402660356,1768762246779,-500.0,0.00017099,2]
[402660357,1768762246788,-1000.0,0.00017099,2]
[402660358,1768762246797,-1000.0,0.00017099,2]
[402660359,1768762246807,-1000.0,0.00017099,2]
[402660360,1768762246816,-1000.0,0.00017099,2]
[402660361,1768762246825,-620.0,0.00017099,2]
[402660362,1768762246836,-388.23561555,0.00017099,2]
[402660363,1768762246845,-150.0,0.000171,2]
[402660364,1768762246855,-14146.65268913,0.00017115,2]
[402660365,1768762246865,-166.66,0.00017116,2]
[402660366,1768762246875,-285.72,0.00017175,2]
[402660367,1768762246884,-150.0,0.00017178,2]
[402660368,1768762246894,-300.0,0.00017178,2]
[402660369,1768762246904,-190.46,0.00017222,2]
[402660370,1768762246913,-758.35731153,0.00017227,2]
[402660371,1768762246923,-150.2,0.00017237,2]
[402660372,1768762246933,-150.0,0.00017237,2]
[402660373,1768762246943,-150.0,0.00017261,2]
[402660374,1768762246953,-467.79,0.00017261,2]
[402660375,1768762246963,-3100.0,0.000173,6]
[402660376,1768762246973,-200.0,0.00017315,2]
[402660377,1768762246983,-27477.85648767,0.00017324,2]
[402660378,1768762246992,-162.33710457,0.00017333,2]
[402660379,1768762247002,-1390.41,0.00017343,2]
[402660380,1768762247012,-200.0,0.00017362,2]
[402660381,1768762247024,-14146.65268913,0.00017376,2]
[402660382,1768762247036,-3900.0,0.000174,6]
[402660383,1768762247046,-277.4,0.0001743,2]
[402660384,1768762247055,-10000.0,0.00017435,2]
[402660385,1768762247065,-379.62,0.00017481,2]
[402660386,1768762247074,-277.4,0.00017482,2]
[402660387,1768762247084,-1646.0,0.00017496,2]
[402660388,1768762247099,-2000.0,0.000175,2]
[402660389,1768762247109,-700.0,0.000175,6]
[402660390,1768762247119,-500.0,0.00017533,2]
[402660391,1768762247128,-500.0,0.00017533,2]
[402660392,1768762247137,-277.4,0.00017534,2]
[402660393,1768762247147,-1000.0,0.00017534,2]
[402660394,1768762247157,-234.22420722,0.00017535,2]
[402660395,1768762247167,-151.0,0.00017542,2]
[402660396,1768762247176,-151.0,0.00017542,2]
[402660397,1768762247188,-151.0,0.00017542,2]
[402660398,1768762247198,-1646.0,0.00017542,2]
[402660399,1768762247207,-5888.0,0.00017543,2]
[402660400,1768762247217,-200.0,0.00017544,2]
[402660401,1768762247227,-150.0,0.0001755,2]
[402660402,1768762247238,-285.72,0.00017555,2]
[402660403,1768762247247,-758.35731153,0.00017563,2]
[402660404,1768762247258,-1646.0,0.00017568,2]
[402660405,1768762247268,-277.4,0.00017585,2]
[402660406,1768762247277,-700.0,0.000176,6]
[402660407,1768762247287,-27477.85648767,0.00017612,2]
[402660408,1768762247297,-500.0,0.00017616,2]
[402660409,1768762247307,-500.0,0.00017616,2]
[402660410,1768762247316,-500.0,0.00017616,2]
[402660411,1768762247326,-2000.0,0.00017616,2]
[402660412,1768762247337,-432.96752271,0.00017616,2]
[402660413,1768762247348,-2000.0,0.00017616,2]
[402660414,1768762247358,-2000.0,0.00017616,2]
[402660415,1768762247368,-500.0,0.00017616,2]
[402660416,1768762247378,-1390.41,0.00017617,2]
[402660417,1768762247387,-277.4,0.00017637,2]
[402660418,1768762247397,-14146.65268913,0.00017638,2]
[402660419,1768762247407,-1612.94477692,0.0001764,2]
[402660420,1768762247417,-595.37131296,0.00017647,2]
[402660421,1768762247428,-207.8888015,0.00017647,2]
[402660422,1768762247438,-500.0,0.00017666,2]
[402660423,1768762247448,-500.0,0.00017666,2]
[402660424,1768762247463,-500.0,0.00017671,2]
[402660425,1768762247473,-500.0,0.00017671,2]
[402660426,1768762247484,-500.0,0.00017671,2]
[402660427,1768762247494,-1282.3852235,0.0001768,2]
[402660428,1768762247503,-277.4,0.00017689,2]
[402660429,1768762247513,-700.0,0.000177,6]
[402660430,1768762247523,-1000.0,0.000177,2]
[402660431,1768762247532,-312.18435336,0.00017726,2]
[402660432,1768762247541,-500.0,0.00017726,2]
[402660433,1768762247551,-500.0,0.00017726,2]
[402660434,1768762247561,-1000.0,0.00017727,2]
[402660435,1768762247571,-1000.0,0.00017733,2]
[402660436,1768762247581,-277.4,0.00017741,2]
[402660437,1768762247590,-996.43588471,0.00017747,2]
[402660438,1768762247600,-150.0,0.00017748,2]
[402660439,1768762247609,-1000.0,0.00017752,2]
[402660440,1768762247619,-1000.0,0.00017754,2]
[402660441,1768762247629,-150.0,0.00017755,2]
[402660442,1768762247638,-150.0,0.00017757,2]
[402660443,1768762247647,-1000.0,0.00017758,2]
[402660444,1768762247656,-1000.0,0.00017759,2]
[402660445,1768762247666,-1000.0,0.00017763,2]
[402660446,1768762247675,-1000.0,0.00017763,2]
[402660447,1768762247685,-1000.0,0.00017764,2]
[402660448,1768762247694,-1000.0,0.00017764,2]
[402660449,1768762247704,-1000.0,0.00017769,2]
[402660450,1768762247714,-1000.0,0.0001778,2]
[402660451,1768762247725,-543.6562721,0.0001778,2]
[402660452,1768762247734,-500.0,0.0001778,2]
[402660453,1768762247743,-1000.0,0.00017789,2]
[402660454,1768762247753,-200.0,0.00017789,2]
[402660455,1768762247761,-1000.0,0.0001779,2]
[402660456,1768762247771,-1282.38522349,0.0001779,2]
[402660457,1768762247781,-156.71374248,0.00017791,2]
[402660458,1768762247790,-277.4,0.00017793,2]
[402660459,1768762247800,-1000.0,0.00017797,2]
[402660460,1768762247809,-1000.0,0.00017798,2]
[402660461,1768762247823,-700.0,0.000178,6]
[402660462,1768762247832,-1000.0,0.00017801,2]
[402660463,1768762247842,-1000.0,0.00017803,2]
[402660464,1768762247851,-500.0,0.00017808,2]
[402660465,1768762247860,-150.0,0.00017808,2]
[402660466,1768762247870,-1000.0,0.00017808,2]
[402660467,1768762247879,-1000.0,0.0001782,2]
[402660468,1768762247889,-1000.0,0.00017825,2]
[402660469,1768762247900,-1000.0,0.0001783,2]
[402660470,1768762247910,-1000.0,0.00017832,2]
[402660471,1768762247920,-1000.0,0.00017833,2]
[402660472,1768762247930,-1000.0,0.00017834,2]
[402660473,1768762247939,-1000.0,0.00017835,2]
[402660474,1768762247949,-500.0,0.00017835,2]
[402660475,1768762247960,-1000.0,0.00017841,2]
[402660476,1768762247970,-1000.0,0.00017843,2]
[402660477,1768762247979,-1000.0,0.00017843,2]
[402660478,1768762247989,-277.4,0.00017845,2]
[402660479,1768762247999,-291.46208432,0.00017846,2]
[402660480,1768762248013,-436.00984694,0.00017846,2]
[402660481,1768762248022,-589.9311,0.00017846,2]
[402660482,1768762248035,-1000.0,0.00017851,2]
[402660483,1768762248044,-150.0,0.00017852,2]
[402660484,1768762248054,-200.0,0.00017856,2]
[402660485,1768762248064,-1000.0,0.00017862,2]
[402660486,1768762248074,-500.0,0.00017863,2]
[402660487,1768762248085,-150.0,0.00017863,2]
[402660488,1768762248094,-3265.53,0.00017863,7]
[402660489,1768762248105,-3265.53,0.00017863,7]
[402660490,1768762248114,-3265.53,0.00017863,7]
[402660491,1768762248124,-3265.53,0.00017863,7]
[402660492,1768762248134,-25000.0,0.00017863,3]
[402660493,1768762248143,-154.495229,0.00017863,2]
[402660494,1768762248153,-151.0,0.00017863,2]
[402660495,1768762248162,-151.0,0.00017863,2]
[402660496,1768762248172,-151.0,0.00017863,2]
[402660497,1768762248181,-151.0,0.00017863,2]
[402660498,1768762248190,-151.0,0.00017863,2]
[402660499,1768762248199,-151.0,0.00017863,2]
[402660500,1768762248210,-151.0,0.00017863,2]
[402660501,1768762248220,-1000.0,0.00017867,2]
[402660502,1768762248229,-1000.0,0.00017873,2]
[402660503,1768762248238,-19499.94007918,0.00017875,3]
[402660504,1768762248247,-1000.0,0.00017877,2]
[402660505,1768762248256,-1000.0,0.00017879,2]
[402660506,1768762248265,-624.55953129,0.00017884,2]
[402660507,1768762248274,-500.0,0.00017884,2]
[402660508,1768762248284,-150.0,0.00017887,2]
[402660509,1768762248293,-500.0,0.0001789,2]
[402660510,1768762248302,-1390.41,0.00017891,2]
[402660511,1768762248311,-1000.0,0.00017893,2]
[402660512,1768762248321,-277.4,0.00017896,2]
[402660513,1768762248330,-1027.73661925,0.000179,2]
[402660514,1768762248339,-1000.0,0.000179,2]
[402660515,1768762248347,-1669.0,0.000179,6]
[402660516,1768762248356,-1266.51219315,0.000179,2]
[402660517,1768762248365,-758.35731153,0.000179,2]
[402660518,1768762248374,-14146.65268913,0.000179,2]
[402660519,1768762248384,-27477.85648767,0.000179,2]